Workbook

Sheet allgemeine Angaben
A1: Gemeinsame Formularblätter der Sozialleistungsträger und der Vereinigungen der Träger der Pflegeeinrichtungen auf Landesebene
A2: zum vereinfachten Verfahren nach § 19 Abs. 6 RV § 75 SGB XI für die vollstationäre Pflege in Rheinland-Pfalz
A3: F O R M U L A R B L A T T I
A5: A. | B5: Allgemeine Angaben
A7: 1. | B7: Einrichtung | K7: 2. | L7: Träger
B9: Name der Einrichtung: | D9: Mustereinrichtung | L9: Träger der Einrichtung:
B10: Straße: | D10: Musterstraße | L10: Straße: | O10: Musterstraße
B11: PLZ/Ort: | D11: 11880 Musterstadt | L11: PLZ/Ort: | O11: 11880 Musterstadt
B12: Tel.-Nr./Fax-Nr.: | L12: Tel.-Nr./Fax-Nr.:
B13: E-Mail: | D13: muster@t-online.de | L13: E-Mail: | O13: muster@t-online.de
B14: IK-Kennzeichen: | D14: 11880 | L14: Landkreis/kreisfreie Stadt: | O14: Musterkreis
B15: Landkreis/kreisfreie Stadt: | D15: Musterkreis
L17: Zugehörigkeit zu einer Vereinigung der Träger auf Landesebene:
L19: x | N19: ja | Q19: nein
L21: Name der Vereinigung:
A24: 3. | B24: Zahl der zugelassenen Pflegeplätze (ohne Ausweichzimmer) | K24: 6. | L24: Berechnung der Fachkraftquote
B27: vollstationäre Pflegeplätze: | D27: 72 | E27: Einbettzimmer: | G27: 63 | M27: TRUE | N27: Pflegefachkraftquote von 50% auf die aktuell vereinbarten Schlüssel
B29: plus Kurzzeitpflegeplätze: | D29: 3 | E29: Doppelzimmer: | G29: 6 | M29: FALSE | N29: Abweichende Berechnung vereinbart
B31: gesamt: | D31: =D29+D27 -> 75 | E31: Mehrbettzimmer:
C33: Auslastung: | D33: 0.95 | L33: Bei Abweichender Berechnung
C35: Pflegetage: | D35: =ROUND(D31*365*0.95,0) -> 26006
N37: Mehrpersonalisierung mit einjährig ausgebildeten Pflegekräften
N38: Die Mehrpersonalisierung erfolgte durch angelernte Hilfskräfte
N39: Mehrpersonalisierung mit angelernten Pflegekräften
N40: Die Mehrpersonalisierung erfolgte durch einjährig ausgebildete Hilfskräfte
N41: Sonstiges:
A43: 4. | B43: Ergänzende Angebote (nachrichtliche Platzzahl)
B46: Tagespflege: | D46: 10
B48: Nachtpflege: | D48: 0
A52: 5. | B52: Umsetzung beantragt ab | D52: 2024-01-01

Sheet Anlage Personalabgleich 50% FKQ (hidden)
A1: Anlage Personalabgleich zum zum vereinfachten Verfahren zum vereinfachten Verfahren nach § 19 Abs. 6 RV § 75 SGB XI für die vollstationäre Pflege in Rheinland-Pfalz
B4: Umsetzung ab | C4: 2024-01-01
B6: Einrichtung | E6: Träger
B7: Name | C7: Mustereinrichtung | E7: Name | F7: Musterträger
B8: Straße | C8: Musterstraße | E8: Straße | F8: Musterstraße
B9: PLZ/Ort | C9: 08215 Musterstadt | E9: PLZ/Ort | F9: 08215 Musterstadt
B10: IK-Nr.: | C10: 0815 11 88 0 | E10: IK-Nr.: | F10: 0815 11 88 0
B13: Berechnung des IST-Personalbedarfs und der Pflegefachkraftquote
B15: An- und Abwesenheitstage inkl. eKZP in der Zeit vom | D15: 2022-11-01 | F15: durchschnittliche Belegung ab dem | G15: =D15 -> 2022-11-01
B16: bis zum | D16: =DATE(YEAR(D15),MONTH(D15)+12,DAY(D15)-1) -> 2023-10-31 | F16: bis zum | G16: =D16 -> 2023-10-31
B17: (12-Monatzeitraum ab Monatsbeginn vor Zeitpunkt der Antragstellung) | F17: 12 | G17: Monate
F18: =D16-D15+1 -> 365 | G18: Abrechnungstage
B20: Pflegegrad | C20: Status | D20: Anzahl | I20: Personal-schlüssel aktuell | J20: SOLLSTELLEN lt. RV § 75 SGB XI
B21: <= 1 | C21: anwesend | D21: 67 | F21: Pflegegrad <= 1 | G21: =ROUND(((D21+D22)/F18),2) -> 0.18
C22: abwesend | D22: 0 | F22: Pflegegrad 2 | G22: =ROUND(((D23+D24)/F18),2) -> 14.7
B23: 2 | C23: anwesend | D23: 5235 | F23: Pflegegrad 3 | G23: =ROUND(((D25+D26)/F18),2) -> 21.76 | I23: 7 | J23: =ROUND((G21/I23),2) -> 0.03
C24: abwesend | D24: 132 | F24: Pflegegrad 4 | G24: =ROUND(((D27+D28)/F18),2) -> 20.52 | I24: 4.13 | J24: =ROUND((G22/I24),2) -> 3.56
B25: 3 | C25: anwesend | D25: 7494 | F25: Pflegegrad 5 | G25: =ROUND(((D29+D30)/F18),2) -> 14.08 | I25: 3.14 | J25: =ROUND((G23/I25),2) -> 6.93
C26: abwesend | D26: 449 | F26: Gesamt | G26: =SUM(G21:G25) -> 71.24 | I26: 2.55 | J26: =ROUND((G24/I26),2) -> 8.05
B27: 4 | C27: anwesend | D27: 7124 | I27: 1.8 | J27: =ROUND((G25/I27),2) -> 7.82
C28: abwesend | D28: 366 | J28: =SUM(J23:J27) -> 26.39 | K28: Pflege
B29: 5 | C29: anwesend | D29: 5132 | I29: =50 -> 50 | J29: =ROUND((G26/50),2) -> 1.42 | K29: Soziale Betreuung
C30: abwesend | D30: 7 | J30: =J28+J29 -> 27.81 | K30: Gesamtstellen Pflege und soziale Betreuung (ohne PDL, § 43b u. bereits vereinbarter Teilhabesicherung/Ehrenamt)
C34: Ø-liches SOLL-Personal in der Zeit vom | E34: =D15 -> 2022-11-01 | F34: bis zum | G34: =D16 -> 2023-10-31 | H34: : | I34: =J30 -> 27.81
B37: Ist-Personal in der Zeit vom | D37: =D15 -> 2022-11-01 | E37: bis zum | F37: =D16 -> 2023-10-31
B39: durchschnittliche Anzahl Altenpflegehilfeschüler: | F39: 3
B40: durchschnittliche Anzahl Schüler in der generalistischen Pflegeausbildung im 2. und 3. Ausbildungsjahr | F40: 5
B42: Pflege- und Soziale Betreuung | F42: Fachkräfte | G42: Hilfskräfte | H42: Gesamt
B43: (ohne zusätzliche Stellen nach § 8 Abs. 6, § 43b und § 84 Abs. 9 SGB XI) | F43: IST-VZK | G43: IST-VZK | H43: IST-VZK
B44: Pflegefachkräfte ohne PDL, QM, Praxisanleitung, soziale Betreuung, Ehrenamt | F44: 13.195 | H44: =F44+G44 -> 13.195 | I44: =F44-(J28/2) -> 0
B45: Pflegehilfskräfte mit einjähriger Ausbildung | G45: 2.12 | H45: 2.12 | I45: =SUM(H45:H48)-(J28/2) -> 0.775
B46: Pflegehilfskräfte ohne Altenpflegeschüler | G46: 10.75 | H46: 10.75
B47: Altenpflegehilfeschüler (Anrechnung 1:7 auf Pflegehilfskräfte) | G47: =ROUND((F39/7),2) -> 0.43 | H47: =F47+G47 -> 0.43
B48: Schüler generalistische Pflegeausbildung im 2. und 3. Ausbildungsjahr | G48: =ROUND((F40/7.5),2) -> 0.67 | H48: =F48+G48 -> 0.67
B49: Zwischensumme: | F49: =SUM(F44:F48) -> 13.195 | G49: =SUM(G45:G48) -> 13.97 | H49: =SUM(H44:H48) -> 27.165
B50: Fachkräfte soziale Betreuung (ohne § 43b und Ehrenamt-Kräfte) | F50: 0.71 | H50: 0.71
B51: Hilfskräfte soziale Betreuung (ohne § 43b und Ehrenamt-Kräfte) | G51: 0.71 | H51: 0.71
B52: Zwischensumme: | F52: =SUM(F50:F51) -> 0.71 | G52: =SUM(G51) -> 0.71 | H52: =SUM(H50:H51) -> 1.42 | I52: =H52-J29 -> 0
B53: Pflegedienstleitung (im vereinbarten freigestelltem Umfang) | F53: 1 | H53: =F53 -> 1
B54: Stelle für Praxisanleitung (wenn vereinbart) | D54: ohne Stellenanteile der Praxisanleitung nach dem PflBG | F54: 1 | H54: =F54+G54 -> 1
B55: Stelle für Qualitätsmanagement (wenn vereinbart) | F55: 1 | H55: =F55+G55 -> 1
B56: Stelle für Gewinnung ehrenamtlicher Mitarbeiter (wenn vereinbart) | F56: 1 | H56: =F56+G56 -> 1
D57: Summe gesamt: | F57: =SUM(F53:F56)+F50+F44 -> 17.905 | G57: =G52+G49 -> 14.68 | H57: =SUM(H53:H56)+H52+H49 -> 32.585 | I57: =H57-F56-F55-F54-F53-J30 -> 0.775

Sheet Anlage Personalabgleich sonst.
A1: Anlage Personalabgleich zum zum vereinfachten Verfahren zum vereinfachten Verfahren nach § 19 Abs. 6 RV § 75 SGB XI für die vollstationäre Pflege in Rheinland-Pfalz
B4: Umsetzung ab | C4: 2024-01-01
B6: Einrichtung | E6: Träger
B7: Name | C7: Mustereinrichtung | E7: Name | F7: Musterträger
B8: Straße | C8: Musterstraße | E8: Straße | F8: Musterstraße
B9: PLZ/Ort | C9: 08215 Musterstadt | E9: PLZ/Ort | F9: 08215 Musterstadt
B10: IK-Nr.: | C10: 0815 11 88 0 | E10: IK-Nr.: | F10: 0815 11 88 0
B13: Berechnung des IST-Personalbedarfs in Pflege und Betreuung
B15: An- und Abwesenheitstage inkl. eKZP in der Zeit vom | D15: =DATE(YEAR('Übersicht Heimentgelte'!D31),MONTH('Übersicht Heimentgelte'!D31)-12,1) -> 2022-11-01 | F15: durchschnittliche Belegung ab dem | G15: =D15 -> 2022-11-01
B16: bis zum | D16: =DATE(YEAR(D15),MONTH(D15)+12,DAY(D15)-1) -> 2023-10-31 | F16: bis zum | G16: =D16 -> 2023-10-31
B17: (12-Monatzeitraum ab Monatsbeginn vor Zeitpunkt der Antragstellung) | F17: 12 | G17: Monate
F18: =D16-D15+1 -> 365 | G18: Abrechnungstage
B20: Pflegegrad | C20: Status | D20: Anzahl | I20: Personal-schlüssel | J20: SOLLSTELLEN lt. RV § 75 SGB XI
B21: <= 1 | C21: anwesend | D21: 67 | F21: Pflegegrad <= 1 | G21: =ROUND(((D21+D22)/F18),2) -> 0.18
C22: abwesend | D22: 0 | F22: Pflegegrad 2 | G22: =ROUND(((D23+D24)/F18),2) -> 14.7
B23: 2 | C23: anwesend | D23: 5235 | F23: Pflegegrad 3 | G23: =ROUND(((D25+D26)/F18),2) -> 21.76 | I23: 7 | J23: =ROUND((G21/I23),2) -> 0.03
C24: abwesend | D24: 132 | F24: Pflegegrad 4 | G24: =ROUND(((D27+D28)/F18),2) -> 20.52 | I24: 4.13 | J24: =ROUND((G22/I24),2) -> 3.56
B25: 3 | C25: anwesend | D25: 7494 | F25: Pflegegrad 5 | G25: =ROUND(((D29+D30)/F18),2) -> 14.08 | I25: 3.14 | J25: =ROUND((G23/I25),2) -> 6.93
C26: abwesend | D26: 449 | F26: Gesamt | G26: =SUM(G21:G25) -> 71.24 | I26: 2.55 | J26: =ROUND((G24/I26),2) -> 8.05
B27: 4 | C27: anwesend | D27: 7124 | I27: 1.8 | J27: =ROUND((G25/I27),2) -> 7.82
C28: abwesend | D28: 366 | J28: =SUM(J23:J27) -> 26.39 | K28: Pflege
B29: 5 | C29: anwesend | D29: 5132 | I29: =50 -> 50 | J29: =ROUND((G26/50),2) -> 1.42 | K29: Soziale Betreuung
C30: abwesend | D30: 7 | J30: =J28+J29 -> 27.81 | K30: Gesamtstellen Pflege und soziale Betreuung (ohne PDL, § 43b u. bereits vereinbarter Teilhabesicherung/Ehrenamt)
C34: Ø-liches SOLL-Personal in der Zeit vom | E34: =D15 -> 2022-11-01 | F34: bis zum | G34: =D16 -> 2023-10-31 | H34: : | I34: =J30 -> 27.81
B37: Berechnung der Pflegefachkraftquote
B39: nach Umsetzung der Schlüsselverbesserung mit einjährig ausgebildeten und/oder mit angelernten Pflegekräften
B41: Personalschlüssel | C41: Stellen
B44: 8.6 | C44: =ROUND((G21/B44),2) -> 0.02
B45: 4.56 | C45: =ROUND((G22/B45),2) -> 3.22
B46: 3.38 | C46: =ROUND((G23/B46),2) -> 6.44
B47: 2.65 | C47: =ROUND((G24/B47),2) -> 7.74
B48: 1.8 | C48: =ROUND((G25/B48),2) -> 7.82
C49: =SUM(C44:C48) -> 25.24
B50: 0.5 | C50: =C49*B50 -> 12.62
B54: Ist-Personal in der Zeit vom | D54: =D15 -> 2022-11-01 | E54: bis zum | F54: =D16 -> 2023-10-31
B56: durchschnittliche Anzahl Altenpflegehilfeschüler: | F56: 3
B57: durchschnittliche Anzahl Schüler in der generalistischen Pflegeausbildung im 2. und 3. Ausbildungsjahr | F57: 5
B59: Pflege- und Soziale Betreuung | F59: Fachkräfte | G59: Hilfskräfte | H59: Gesamt
B60: (ohne zusätzliche Stellen nach § 8 Abs. 6, § 43b und § 84 Abs. 9 SGB XI) | F60: IST-VZK | G60: IST-VZK | H60: IST-VZK
B61: Pflegefachkräfte ohne PDL, QM, Praxisanleitung, soziale Betreuung, Ehrenamt | F61: 12 | H61: =F61+G61 -> 12 | I61: =F61-C50 -> -0.62
B62: Pflegehilfskräfte mit einjähriger Ausbildung | G62: 2.12 | H62: 2.12 | I62: =SUM(H62:H65)-(J28-C50) -> 0.2
B63: Pflegehilfskräfte ohne Altenpflegeschüler | G63: 10.75 | H63: 10.75
B64: Altenpflegehilfeschüler (Anrechnung 1:7 auf Pflegehilfskräfte) | G64: =ROUND((F56/7),2) -> 0.43 | H64: =F64+G64 -> 0.43
B65: Schüler generalistische Pflegeausbildung im 2. und 3. Ausbildungsjahr | G65: =ROUND((F57/7.5),2) -> 0.67 | H65: =F65+G65 -> 0.67
B66: Zwischensumme: | F66: =SUM(F61:F65) -> 12 | G66: =SUM(G62:G65) -> 13.97 | H66: =SUM(H61:H65) -> 25.97
B67: Fachkräfte soziale Betreuung (ohne § 43b und Ehrenamt-Kräfte) | F67: 0.71 | H67: 0.71
B68: Hilfskräfte soziale Betreuung (ohne § 43b und Ehrenamt-Kräfte) | G68: 0.71 | H68: 0.71
B69: Zwischensumme: | F69: =SUM(F67:F68) -> 0.71 | G69: =SUM(G68) -> 0.71 | H69: =SUM(H67:H68) -> 1.42 | I69: =H69-J29 -> 0
B70: Pflegedienstleitung (im vereinbarten freigestelltem Umfang) | F70: 1 | H70: =F70 -> 1
B71: Stelle für Praxisanleitung (wenn vereinbart) | D71: ohne Stellenanteile der Praxisanleitung nach dem PflBG | F71: 1 | H71: =F71+G71 -> 1
B72: Stelle für Qualitätsmanagement (wenn vereinbart) | F72: 1 | H72: =F72+G72 -> 1
B73: Stelle für Gewinnung ehrenamtlicher Mitarbeiter (wenn vereinbart) | F73: 1 | H73: =F73+G73 -> 1
D74: Summe gesamt: | F74: =SUM(F70:F73)+F67+F61 -> 16.71 | G74: =G69+G66 -> 14.68 | H74: =SUM(H70:H73)+H69+H66 -> 31.39 | I74: =H74-F73-F72-F71-F70-J30 -> -0.42

Sheet Belegungsplanung 50% FKQ (hidden)
A1: Gemeinsame Formularblätter der Sozialleistungsträger und der Vereinigungen der Träger der Pflegeeinrichtungen auf Landesebene zum vereinfachten Verfahren nach § 19 Abs. 6 RV § 75 SGB XI für die vollstationäre Pflege in Rheinland-Pfalz
A5: B. 1 | B5: Belegungsplanung und Personalbesetzung sowie Personalbesetzungspotential
A6: 1. | B6: Planung der Belegung - vollstationäre Pflege und Kurzzeitpflege
A7: Pflegegrade | D7: Anzahl Pflegetage anwesend/ abwesend | E7: %-Werte anwesend/ abwesend | F7: Umrechnungs-faktor | G7: Berechnungs-tage | H7: Belegung in Köpfen
D8: Pflegetage
D9: anw./abw.
A10: Pflegegrad 1 | C10: anwesend | D10: 67 | E10: =(D10*100)/$E$21 -> 0.2447488584 | F10: 1 | G10: =ROUND((D10*F10),0) -> 67 | H10: =(D10+D11)/365 -> 0.1835616438
C11: abwesend | D11: 0 | E11: =(D11*100)/$E$21 -> 0 | F11: 0.6 | G11: 0
A12: Pflegegrad 2 | C12: anwesend | D12: 5235 | E12: 19.12328767 | F12: 1 | G12: =ROUND((D12*F12),0) -> 5235 | H12: =(D12+D13)/365 -> 14.70410959
C13: abwesend | D13: 132 | E13: 0.4821917808 | F13: 0.6 | G13: =ROUND((D13*F13),0) -> 79
A14: Pflegegrad 3 | C14: anwesend | D14: 7494 | E14: 27.37534247 | F14: 1 | G14: 7494 | H14: =(D14+D15)/365 -> 21.76164384
C15: abwesend | D15: 449 | E15: 1.640182648 | F15: 0.6 | G15: 269
A16: Pflegegrad 4 | C16: anwesend | D16: 7124 | E16: 26.02374429 | F16: 1 | G16: 7124 | H16: =(D16+D17)/365 -> 20.52054795
C17: abwesend | D17: 366 | E17: 1.336986301 | F17: 0.6 | G17: 220
A18: Pflegegrad 5 | C18: anwesend | D18: 5132 | E18: 18.74703196 | F18: 1 | G18: 5132 | H18: =(D18+D19)/365 -> 14.07945205
C19: abwesend | D19: 7 | E19: 0.02557077626 | F19: 0.6 | G19: 4
A20: gesamt: | E20: =SUM(D10:D19) -> 26006 | F20: =ROUND(SUM(E10:E19)/100,2) -> 0.95 | G20: =SUM(G10:G19) -> 25624 | H20: =SUM(H10:H19) -> 71.24931507
A21: max. mögl. Berechnungstage vollstationär: | E21: ='allgemeine Angaben'!D31*365 -> 27375 | F21: 1
A23: 2. | B23: Aktuell vereinbarte Mindestpersonalausstattung (ohne zusätzliche Stellen nach § 8 Abs. 6, § 43b und § 84 Abs. 9 SGB XI) nach Umsetzung der Schlüsselverbesserung mit einjährig ausgebildeten und/oder angelernten Pflegekräften
A24: Pflegegrade | C24: Einrichtungs-individueller Personalschlüssel | D24: Personal in VK | E24: Pflegefachkräfte | F24: Pflegekräfte mit mind. 1-jähriger Ausbildung | G24: angelernte Pflegekräfte
A25: Pflegegrad 1 | C25: ='Anlage Personalabgleich 50% FKQ'!I23 -> 7 | D25: =H10/C25 -> 0.02622309198 | E25: ='Anlage Personalabgleich 50% FKQ'!J28/2 -> 13.195 | F25: 0 | G25: =(D35/2)-F25 -> 13.19309576
A27: Pflegegrad 2 | C27: ='Anlage Personalabgleich 50% FKQ'!I24 -> 4.13 | D27: =H12/C27 -> 3.560317092
A29: Pflegegrad 3 | C29: ='Anlage Personalabgleich 50% FKQ'!I25 -> 3.14 | D29: =H14/C29 -> 6.93045982
A31: Pflegegrad 4 | C31: ='Anlage Personalabgleich 50% FKQ'!I26 -> 2.55 | D31: =H16/C31 -> 8.047273704
A33: Pflegegrad 5 | C33: ='Anlage Personalabgleich 50% FKQ'!I27 -> 1.8 | D33: =H18/C33 -> 7.821917808
D35: =SUM(D25:D34) -> 26.38619152 | E35: =E25 -> 13.195 | F35: =F25 -> 0 | G35: =G25 -> 13.19309576
F36: =F35+G35 -> 13.19309576
E37: =SUM(E35+F36) -> 26.38809576
D39: soziale Betreuung | E39: Fachkräfte Betreuung | F39: Beutreuungs-kräfte mit mind. 1-jähriger Ausbildung | G39: angelernte Betreuungs-kräfte
D40: 50 | E40: 0.5 | F40: 0.42 | G40: 0.5
D41: =H20/D40 -> 1.424986301 | E41: =E40 -> 0.5 | F41: =F40 -> 0.42 | G41: =G40 -> 0.5
F42: =F41+G41 -> 0.92
E43: =SUM(E41+F42) -> 1.42
A46: 3. | B46: Maximale Personelle Besetzung nach § 113c Abs. 1 SGB XI
A47: Pflegegrade | C47: Relation § 113c Abs. 1 Ziffer 3 | D47: Relation § 113c Abs. 1 Ziffer 2 | E47: Relation § 113c Abs. 1 Ziffer 1 | F47: Fachkräfte Pflege und Betreuung | G47: Pflege- und Beutreuungs-kräfte mit mind. 1-jähriger Ausbildung | H47: Pflege- und Betreuungs-kräfte ohne Ausbildung
A50: Pflegegrad 1 | C50: 0.077 | D50: 0.0564 | E50: 0.0872 | F50: =H10*C50 -> 0.01413424658 | G50: =H10*D50 -> 0.01035287671
H51: =H10*E50 -> 0.01600657534
A52: Pflegegrad 2 | C52: 0.1037 | D52: 0.0675 | E52: 0.1202 | F52: =H12*C52 -> 1.524816164 | G52: =H12*D52 -> 0.9925273973 | H52: =H12*E52 -> 1.767433973
A54: Pflegegrad 3 | C54: 0.1551 | D54: 0.1074 | E54: 0.1449 | F54: =H14*C54 -> 3.375230959 | G54: =H14*D54 -> 2.337200548 | H54: =H14*E54 -> 3.153262192
A56: Pflegegrad 4 | C56: 0.2463 | D56: 0.1413 | E56: 0.1627 | F56: =H16*C56 -> 5.054210959 | G56: =H16*D56 -> 2.899553425 | H56: =H16*E56 -> 3.338693151
A58: Pflegegrad 5 | C58: 0.3842 | D58: 0.1102 | E58: 0.1758 | F58: =H18*C58 -> 5.409325479 | G58: =H18*D58 -> 1.551555616 | H58: =H18*E58 -> 2.475167671
A60: Höchstwerte § 113 c Abs. 1 SGB XI: | D60: ∑ | E60: =SUM(F60:H60) -> 33.91947123 | F60: =SUM(F50:F59) -> 15.37771781 | G60: =SUM(G50:G59) -> 7.791189863 | H60: =SUM(H51:H59) -> 10.75056356
A61: Aktuelle Mindestpersonalbesetzung: | D61: ∑ | E61: =SUM(F61:H61) -> 27.80809576 | F61: =E25+E40 -> 13.695 | G61: =F25+F40 -> 0.42 | H61: =G25+G40 -> 13.69309576
A62: Differenz Höchstwerte zu aktueller Mindesbesetzung | D62: ∑ | E62: =SUM(F62:H62) -> 6.111375475 | F62: =F60-F61 -> 1.682717808 | G62: =G60-G61 -> 7.371189863 | H62: =H60-H61 -> -2.942532196
A63: 1. Teilschritt: 1/5-Differenz | D63: ∑ | E63: =SUM(F63:H63) -> 1.222275095 | F63: =F62/5 -> 0.3365435616 | G63: =G62/5 -> 1.474237973 | H63: =H62/5 -> -0.5885064393

Sheet Belegungsplanung sonst.
A1: Gemeinsame Formularblätter der Sozialleistungsträger und der Vereinigungen der Träger der Pflegeeinrichtungen auf Landesebene zum vereinfachten Verfahren nach § 19 Abs. 6 RV § 75 SGB XI für die vollstationäre Pflege in Rheinland-Pfalz
A5: B. 1 | B5: Belegungsplanung und Personalbesetzung sowie Personalbesetzungspotential
A6: 1. | B6: Planung der Belegung - vollstationäre Pflege und Kurzzeitpflege
A7: Pflegegrade | D7: Anzahl Pflegetage anwesend/ abwesend | E7: %-Werte anwesend/ abwesend | F7: Umrechnungs-faktor | G7: Berechnungs-tage | H7: Belegung in Köpfen
D8: Pflegetage
D9: anw./abw.
A10: Pflegegrad 1 | C10: anwesend | D10: 67 | E10: =(D10*100)/$E$21 -> 0.2447488584 | F10: 1 | G10: =ROUND((D10*F10),0) -> 67 | H10: =(D10+D11)/365 -> 0.1835616438
C11: abwesend | D11: 0 | E11: =(D11*100)/$E$21 -> 0 | F11: 0.6 | G11: 0
A12: Pflegegrad 2 | C12: anwesend | D12: 5235 | E12: 19.12328767 | F12: 1 | G12: =ROUND((D12*F12),0) -> 5235 | H12: =(D12+D13)/365 -> 14.70410959
C13: abwesend | D13: 132 | E13: 0.4821917808 | F13: 0.6 | G13: =ROUND((D13*F13),0) -> 79
A14: Pflegegrad 3 | C14: anwesend | D14: 7494 | E14: 27.37534247 | F14: 1 | G14: 7494 | H14: =(D14+D15)/365 -> 21.76164384
C15: abwesend | D15: 449 | E15: 1.640182648 | F15: 0.6 | G15: 269
A16: Pflegegrad 4 | C16: anwesend | D16: 7124 | E16: 26.02374429 | F16: 1 | G16: 7124 | H16: =(D16+D17)/365 -> 20.52054795
C17: abwesend | D17: 366 | E17: 1.336986301 | F17: 0.6 | G17: 220
A18: Pflegegrad 5 | C18: anwesend | D18: 5132 | E18: 18.74703196 | F18: 1 | G18: 5132 | H18: =(D18+D19)/365 -> 14.07945205
C19: abwesend | D19: 7 | E19: 0.02557077626 | F19: 0.6 | G19: 4
A20: gesamt: | E20: =SUM(D10:D19) -> 26006 | F20: =ROUND(SUM(E10:E19)/100,2) -> 0.95 | G20: =SUM(G10:G19) -> 25624 | H20: =SUM(H10:H19) -> 71.24931507
A21: max. mögl. Berechnungstage vollstationär: | E21: ='allgemeine Angaben'!D31*365 -> 27375 | F21: 1
A23: 2. | B23: Aktuell vereinbarte Mindestpersonalausstattung (ohne zusätzliche Stellen nach § 8 Abs. 6, § 43b und § 84 Abs. 9 SGB XI) nach Umsetzung der Schlüsselverbesserung mit einjährig ausgebildeten und/oder angelernten Pflegekräften
A24: Pflegegrade | C24: Einrichtungs-individueller Personalschlüssel | D24: Personal in VK | E24: Pflegefachkräfte | F24: Pflegekräfte mit mind. 1-jähriger Ausbildung | G24: angelernte Pflegekräfte
A25: Pflegegrad 1 | C25: ='Anlage Personalabgleich sonst.'!I23 -> 7 | D25: =H10/C25 -> 0.02622309198 | E25: ='Anlage Personalabgleich sonst.'!C50 -> 12.62 | F25: 0 | G25: =(D35/2)-F25 -> 13.19309576
A27: Pflegegrad 2 | C27: ='Anlage Personalabgleich sonst.'!I24 -> 4.13 | D27: =H12/C27 -> 3.560317092
A29: Pflegegrad 3 | C29: ='Anlage Personalabgleich sonst.'!I25 -> 3.14 | D29: =H14/C29 -> 6.93045982
A31: Pflegegrad 4 | C31: ='Anlage Personalabgleich sonst.'!I26 -> 2.55 | D31: =H16/C31 -> 8.047273704
A33: Pflegegrad 5 | C33: ='Anlage Personalabgleich sonst.'!I27 -> 1.8 | D33: =H18/C33 -> 7.821917808
D35: =SUM(D25:D34) -> 26.38619152 | E35: =E25 -> 12.62 | F35: =F25 -> 0 | G35: =G25 -> 13.19309576
F36: =F35+G35 -> 13.19309576
E37: =SUM(E35+F36) -> 25.81309576
D39: soziale Betreuung | E39: Fachkräfte Betreuung | F39: Beutreuungs-kräfte mit mind. 1-jähriger Ausbildung | G39: angelernte Betreuungs-kräfte
D40: 50 | E40: 0.5 | F40: 0.42 | G40: 0.5
D41: =H20/D40 -> 1.424986301 | E41: =E40 -> 0.5 | F41: =F40 -> 0.42 | G41: =G40 -> 0.5
F42: =F41+G41 -> 0.92
E43: =SUM(E41+F42) -> 1.42
A45: 3. | B45: Maximale Personelle Besetzung nach § 113c Abs. 1 SGB XI
A46: Pflegegrade | C46: Relation § 113c Abs. 1 Ziffer 3 | D46: Relation § 113c Abs. 1 Ziffer 2 | E46: Relation § 113c Abs. 1 Ziffer 1 | F46: Fachkräfte Pflege und Betreuung | G46: Pflege- und Beutreuungs-kräfte mit mind. 1-jähriger Ausbildung* | H46: Pflege- und Betreuungs-kräfte ohne Ausbildung
A49: Pflegegrad 1 | C49: 0.077 | D49: 0.0564 | E49: 0.0872 | F49: =H10*C49 -> 0.01413424658 | G49: =H10*D49 -> 0.01035287671
H50: =H10*E49 -> 0.01600657534
A51: Pflegegrad 2 | C51: 0.1037 | D51: 0.0675 | E51: 0.1202 | F51: =H12*C51 -> 1.524816164 | G51: =H12*D51 -> 0.9925273973 | H51: =H12*E51 -> 1.767433973
A53: Pflegegrad 3 | C53: 0.1551 | D53: 0.1074 | E53: 0.1449 | F53: =H14*C53 -> 3.375230959 | G53: =H14*D53 -> 2.337200548 | H53: =H14*E53 -> 3.153262192
A55: Pflegegrad 4 | C55: 0.2463 | D55: 0.1413 | E55: 0.1627 | F55: =H16*C55 -> 5.054210959 | G55: =H16*D55 -> 2.899553425 | H55: =H16*E55 -> 3.338693151
A57: Pflegegrad 5 | C57: 0.3842 | D57: 0.1102 | E57: 0.1758 | F57: =H18*C57 -> 5.409325479 | G57: =H18*D57 -> 1.551555616 | H57: =H18*E57 -> 2.475167671
A59: Höchstwerte § 113 c Abs. 1 SGB XI: | D59: ∑ | E59: =SUM(F59:H59) -> 33.91947123 | F59: =SUM(F49:F58) -> 15.37771781 | G59: =SUM(G49:G58) -> 7.791189863 | H59: =SUM(H50:H58) -> 10.75056356
A60: Aktuelle Mindestpersonalbesetzung: | D60: ∑ | E60: =SUM(F60:H60) -> 27.23309576 | F60: =E25+E40 -> 13.12 | G60: =F25+F40 -> 0.42 | H60: =G25+G40 -> 13.69309576
A61: Differenz Höchstwerte zu aktueller Mindesbesetzung | D61: ∑ | E61: =SUM(F61:H61) -> 6.686375475 | F61: =F59-F60 -> 2.257717808 | G61: =G59-G60 -> 7.371189863 | H61: =H59-H60 -> -2.942532196
A62: 1. Teilschritt: 1/5-Differenz | D62: ∑ | E62: =SUM(F62:H62) -> 1.337275095 | F62: =F61/5 -> 0.4515435616 | G62: =G61/5 -> 1.474237973 | H62: =H61/5 -> -0.5885064393

Sheet Personalaufwand
A1: Gemeinsame Formularblätter der Sozialleistungsträger und der Vereinigungen der Träger der Pflegeeinrichtungen auf Landesebene
A2: zum vereinfachten Verfahren nach § 19 Abs. 5 RV § 75 SGB XI für die vollstationäre Pflege in Rheinland-Pfalz
A3: F O R M U L A R B L A T T III
A5: C. | B5: Stellenplanung und Kalkulation der Personalaufwendungen zum vereinfachten Verfahren nach § 19 Abs. 6 RV § 75 SGB XI für die vollstationäre Pflege in Rheinland-Pfalz
B6: Die Jahrespersonalkosten sind entsprechend Anlage 2 einschließlich Zulagen, Zuschläge (auch Sonderzuwendungen), Zusatzversorgung und Arbeitgeberanteil an der Sozialversicherung kalkuliert.
B7: Teilzeitstellen sind über den Stellenanteil auf Vollzeitkräfte umzurechnen.
B9: zusätzliche Stellen nach Anlage zum Personalaufwand | E9: Anzahl Stellen in Vollzeitkräften | F9: Kalkulierte Personal- aufwendungen pro VZK-Stelle | H9: kalkulierte Jahrespersonal- kosten
B11: Gesamt | E11: ='Anlage zum Personalaufwand'!G28 -> 1.22 | F11: ='Anlage zum Personalaufwand'!N28 -> 60460 | H11: ='Anlage zum Personalaufwand'!M28 -> 73761.2
B13: Qualifikationsniveaus | E13: Fachkräfte Pflege und Betreuung | F13: Pflege- und Beutreuungskräfte mit mind. 1-jähriger Ausbildung | H13: Pflege- und Betreuungskräfte ohne Ausbildung
B14: Zu vereinbarende Stellenanteile | E14: ='Anlage zum Personalaufwand'!G15/'Anlage zum Personalaufwand'!G28 -> 0.4098360656 | F14: ='Anlage zum Personalaufwand'!G21/'Anlage zum Personalaufwand'!G28 -> 0.4262295082 | H14: ='Anlage zum Personalaufwand'!G27/'Anlage zum Personalaufwand'!G28 -> 0.1639344262
A16: D. | B16: Ermittlung der Erhöhung der Pflegesätze für PG 1 bis 5 und des EEE vollstationär für die PG 2 bis 5
C18: Personalaufwand gesamt | E18: =H11 -> 73761.2
C19: Berechnungstage | E19: 25624
C20: Personalaufwand gesamt | E20: Pflege 70 % | G20: Unterkunft 19 % | H20: Verpflegung 11 %
C21: durch Berechnungstage | E21: =ROUND(((E18*0.7)/E19),2) -> 2.02 | G21: =ROUND(((E18*0.19)/E19),2) -> 0.55 | H21: =ROUND(((E18*0.11)/E19),2) -> 0.32
C23: vollstationäre Pflege
D24: Aktuelle Pflegesätze (ohne ARB und ABZU): | E24: Neue Pflegesätze:
C26: Pflegegrad 1 | D26: 41.87 | E26: =E27*0.78 -> 43.446
C27: Pflegegrad 2 | D27: 53.68 | E27: =D27+$E$21 -> 55.7
C28: Pflegegrad 3 | D28: 69.85 | E28: =D28+$E$21 -> 71.87
C29: Pflegegrad 4 | D29: 86.71 | E29: =D29+$E$21 -> 88.73
C30: Pflegegrad 5 | D30: 94.27 | E30: =D30+$E$21 -> 96.29 | G30: Einheitlicher Eigenanteil ohne ARB und ABZU
C31: Einheitlicher Eigenanteil
C32: ohne ARB und ABZU | D32: 28.36 | E32: =D32+E21 -> 30.38 | G32: =ROUND(E32*30.42,2) -> 924.16
E33: je Berechnungstag | G33: je Monat (30,42 Berechnungstage)
C34: Unterkunft | D34: 20.67 | E34: =D34+$G$21 -> 21.22
C35: Verpflegung | D35: 11.97 | E35: =D35+$H$21 -> 12.29
C37: eingestreute Kurzzeitpflege
D38: Aktuelle Pflegesätze: | E38: Neue Pflegesätze:
C40: Pflegegrad 1 | D40: 49.23 | E40: =E41*0.78 -> 49.1868
C41: Pflegegrad 2 | D41: 61.04 | E41: =D41+$E$21 -> 63.06
C42: Pflegegrad 3 | D42: 77.21 | E42: =D42+$E$21 -> 79.23
C43: Pflegegrad 4 | D43: 94.07 | E43: =D43+$E$21 -> 96.09
C44: Pflegegrad 5 | D44: 101.63 | E44: =D44+$E$21 -> 103.65
C46: Unterkunft | D46: =D34 -> 20.67 | E46: =D46+$G$21 -> 21.22
C47: Verpflegung | D47: =D35 -> 11.97 | E47: =D47+$H$21 -> 12.29

Sheet Anlage zum Personalaufwand
A1: Gemeinsame Formularblätter der Sozialleistungsträger und der Vereinigungen der Träger der Pflegeeinrichtungen auf Landesebene
A2: zum vereinfachten Verfahren nach § 19 Abs. 6 RV § 75 SGB XI für die vollstationäre Pflege in Rheinland-Pfalz
A3: ANLAGE zum F O R M U L A R B L A T T I I I
A7: Relevante Angaben zu den kalkulierten prospektiven Personalkosten
A8: Qualifikationsgruppe | D8: interne MA-Nr. | E8: Alter/ Betriebszugehörigkeit | F8: Eingruppierung gem. Tarifwerk | G8: Beschäftigungs- umfang | H8: AN Brutto Lohnkosten | I8: Zuschläge | J8: Zulagen | K8: AG Anteil zur SV | L8: AG Anteil ZVK | M8: kalkulierte Jahrespersonal-kosten | N8: Jahrespersonal-kosten pro VZK
F9: Gruppe und Stufe
A10: Fachkräfte Pflege und Betreuung
C11: Fachkraft | D11: 1 | G11: 0.5 | H11: 27500 | K11: 6050 | M11: =ROUND(SUM(H11:L11),2) -> 33550 | N11: =IFERROR(M11/G11,0) -> 67100
M12: =ROUND(SUM(H12:L12),2) -> 0 | N12: =IFERROR(M12/G12,0) -> 0
M13: 0 | N13: =IFERROR(M13/G13,0) -> 0
M14: 0 | N14: 0
G15: =SUM(G11:G14) -> 0.5 | M15: =SUM(M11:M14) -> 33550 | N15: =M15/G15 -> 67100
A16: Pflege- und Beutreuungskräfte mit mind. 1-jähriger Ausbildung
C17: Hilfskraft mit mind. 1-jähriger Ausbildung | D17: 2 | G17: 0.25 | H17: 12000 | K17: 2640 | M17: =ROUND(SUM(H17:L17),2) -> 14640 | N17: =IFERROR(M17/G17,0) -> 58560
C18: Hilfskraft mit mind. 1-jähriger Ausbildung | D18: 3 | G18: 0.27 | H18: 12960 | K18: 2851.2 | M18: =ROUND(SUM(H18:L18),2) -> 15811.2 | N18: =IFERROR(M18/G18,0) -> 58560
M19: =ROUND(SUM(H19:L19),2) -> 0 | N19: =IFERROR(M19/G19,0) -> 0
M20: 0 | N20: =IFERROR(M20/G20,0) -> 0
G21: =SUM(G17:G20) -> 0.52 | M21: =SUM(M17:M20) -> 30451.2 | N21: =M21/G21 -> 58560
A22: Pflege- und Betreuungskräfte ohne Ausbildung
C23: angelernte Hilfskraft | D23: 4 | G23: 0.2 | H23: 8000 | K23: 1760 | M23: =ROUND(SUM(H23:L23),2) -> 9760 | N23: =IFERROR(M23/G23,0) -> 48800
M24: =ROUND(SUM(H24:L24),2) -> 0 | N24: =IFERROR(M24/G24,0) -> 0
M25: =ROUND(SUM(H25:L25),2) -> 0 | N25: =IFERROR(M25/G25,0) -> 0
M26: =ROUND(SUM(H26:L26),2) -> 0 | N26: =IFERROR(M26/G26,0) -> 0
G27: =SUM(G23:G26) -> 0.2 | M27: =SUM(M23:M26) -> 9760 | N27: =M27/G27 -> 48800
C28: Summe | G28: =G27+G21+G15 -> 1.22 | M28: =M27+M21+M15 -> 73761.2 | N28: =ROUND(M28/G28,2) -> 60460

Sheet Übersicht Heimentgelte
A1: Gemeinsame Formularblätter der Sozialleistungsträger und der Vereinigungen der Träger der Pflegeeinrichtungen auf Landesebene
A2: zum vereinfachten Verfahren nach § 19 Abs. 6 RV § 75 SGB XI für die vollstationäre Pflege in Rheinland-Pfalz
A3: F O R M U L A R B L A T T IV
A5: E. | B5: Übersicht über die beantragten und nachrichtlichen Bestandteile der Gesamtheimentgelte
C7: vollstationäre Pflege | D7: Pflegegrad 1 EUR/Bewohner | E7: Pflegegrad 2 EUR/Bewohner | F7: Pflegegrad 3 EUR/Bewohner | G7: Pflegegrad 4 EUR/Bewohner | H7: Pflegegrad 5 EUR/Bewohner | I7: Einheitlicher Eigenanteil je Berechnungstag ohne ARB und ABZU
C9: Pflegesatz | D9: =Personalaufwand!E26 -> 43.446 | E9: =Personalaufwand!E27 -> 55.7 | F9: =Personalaufwand!E28 -> 71.87 | G9: =Personalaufwand!E29 -> 88.73 | H9: =Personalaufwand!E30 -> 96.29 | I9: =Personalaufwand!E32 -> 30.38
B10: + | C10: Unterkunft | D10: =Personalaufwand!E34 -> 21.22 | E10: =D10 -> 21.22 | F10: =E10 -> 21.22 | G10: 21.22 | H10: =G10 -> 21.22
B11: + | C11: Verpflegung | D11: =Personalaufwand!E35 -> 12.29 | E11: =D11 -> 12.29 | F11: 12.29 | G11: 12.29 | H11: 12.29
C14: eingestreute Kurzzeitpflege | D14: Pflegegrad 1 EUR/Bewohner | E14: Pflegegrad 2 EUR/Bewohner | F14: Pflegegrad 3 EUR/Bewohner | G14: Pflegegrad 4 EUR/Bewohner | H14: Pflegegrad 5 EUR/Bewohner
C16: Pflegesatz | D16: =Personalaufwand!E40 -> 49.1868 | E16: =Personalaufwand!E41 -> 63.06 | F16: =Personalaufwand!E42 -> 79.23 | G16: =Personalaufwand!E43 -> 96.09 | H16: =Personalaufwand!E44 -> 103.65
C17: Unterkunft | D17: =Personalaufwand!E46 -> 21.22 | E17: =D17 -> 21.22 | F17: =E17 -> 21.22 | G17: 21.22 | H17: =G17 -> 21.22
C18: Verpflegung | D18: =Personalaufwand!E47 -> 12.29 | E18: =D18 -> 12.29 | F18: 12.29 | G18: 12.29 | H18: 12.29
C20: Der Einrichtungsträger verpflichtet sich hiermit dazu:
B22: - | C22: eine Kopie der Stellungnahme des Heimbeirats zur geplanten Entgelterhöhung
B24: - | C24: die vereinbarten Personalwerte auf Basis des § 19 Abs. 4, 6 des Rahmenvertrags nach § 75 SGB XI einzuhalten.
C27: Für die Richtigkeit der Angaben
D31: 2023-11-15
C32: Ort, Datum | I32: Unterschrift des Trägers
